{"text_format":"1","workbook":"xlsx","n_sheets":2,"sheets":["랜덤키워드조합","Sheet1"],"not_rendered":{"charts":0,"images":0,"macros":1,"external_links":0,"defined_names":0,"comments":0,"pivot_tables":0},"unopened":[],"bounds":{"document_bytes":16777216,"sheet_cells":100000,"rows_first":2000,"rows_last":500,"rows_between":2000,"halvings":0,"cell_chars":16384,"cell_head_chars":4096},"cells_cut":0,"cells_raw":0,"read":"whole","date_system":"1900"}

{"sheet":"랜덤키워드조합","index":0,"n_rows":303,"n_cols":5,"rows_kept":303,"cut":false,"hidden":false,"merged":[[0,0,0,1],[1,2,1,5]]}
["문제:",null,null,"단 : 랜덤 추출 / 어 : 무조건 들어감"]
[null,null,"8개의 랜덤한 문구를 완성하시오"]
["단","어",null,"조합","중복"]
["엑","숙",null,"을 하 남 셀 엑 숙 는 제",{"$f":"COUNTIF($D$4:$D$303,D4)","v":1}]
["셀","제",null,"제 셀 자 하 남 는 사 숙",{"$f":"COUNTIF($D$4:$D$303,D5)","v":1}]
["을",null,null,"제 하 숙 셀 자 랑 을 는",1]
["사",null,null,"사 숙 하 남 셀 엑 제 을",1]
["랑",null,null,"셀 랑 엑 자 을 숙 남 제",1]
["하",null,null,"제 남 엑 셀 사 하 숙 자",1]
["는",null,null,"자 랑 하 제 남 사 숙 셀",1]
["남",null,null,"사 남 제 을 자 숙 하 랑",1]
["자",null,null,"남 셀 제 자 숙 하 엑 사",1]
[null,null,null,"제 을 사 숙 엑 셀 자 하",1]
[null,null,null,"남 제 셀 사 하 숙 엑 랑",1]
[null,null,null,"숙 자 하 엑 제 는 남 셀",1]
[null,null,null,"엑 남 하 셀 제 는 사 숙",1]
[null,null,null,"제 는 숙 남 하 자 을 랑",1]
[null,null,null,"제 는 랑 을 하 숙 남 셀",1]
[null,null,null,"셀 사 제 남 숙 하 을 랑",1]
[null,null,null,"엑 자 을 숙 셀 제 랑 사",1]
[null,null,null,"랑 하 을 남 제 엑 셀 숙",1]
[null,null,null,"사 자 랑 숙 을 엑 남 제",1]
[null,null,null,"남 자 사 제 숙 랑 셀 엑",1]
[null,null,null,"을 숙 는 하 자 사 제 엑",1]
[null,null,null,"남 는 자 랑 셀 제 숙 엑",1]
[null,null,null,"는 숙 랑 엑 사 자 셀 제",1]
[null,null,null,"남 자 을 엑 제 숙 셀 하",1]
[null,null,null,"자 을 제 남 하 사 숙 셀",1]
[null,null,null,"제 셀 사 랑 숙 남 하 자",1]
[null,null,null,"하 엑 랑 자 제 숙 사 셀",1]
[null,null,null,"는 을 하 자 숙 남 사 제",1]
[null,null,null,"숙 셀 을 하 엑 사 제 는",1]
[null,null,null,"을 엑 숙 하 제 자 남 랑",1]
[null,null,null,"남 셀 엑 제 하 숙 자 을",1]
[null,null,null,"셀 는 남 하 을 사 제 숙",1]
[null,null,null,"제 자 셀 숙 엑 하 남 는",1]
[null,null,null,"는 제 랑 남 숙 하 엑 을",1]
[null,null,null,"셀 제 랑 자 엑 남 하 숙",1]
[null,null,null,"셀 엑 제 하 을 는 숙 랑",1]
[null,null,null,"숙 제 자 하 남 셀 는 사",1]
[null,null,null,"을 숙 는 제 랑 자 남 사",1]
[null,null,null,"셀 을 남 사 제 엑 숙 는",1]
[null,null,null,"랑 자 엑 사 제 는 셀 숙",1]
[null,null,null,"을 자 사 남 제 셀 숙 하",1]
[null,null,null,"자 숙 제 사 하 는 남 을",1]
[null,null,null,"엑 제 하 숙 자 셀 는 을",1]
[null,null,null,"셀 남 랑 을 제 숙 하 자",1]
[null,null,null,"랑 엑 자 는 숙 제 하 사",1]
[null,null,null,"셀 을 제 랑 자 숙 하 남",1]
[null,null,null,"숙 자 셀 랑 하 제 사 엑",1]
[null,null,null,"자 는 랑 하 엑 을 제 숙",1]
[null,null,null,"남 랑 제 엑 을 숙 자 는",1]
[null,null,null,"는 셀 사 자 엑 숙 제 하",1]
[null,null,null,"제 사 남 엑 는 자 숙 셀",1]
[null,null,null,"는 남 제 사 엑 랑 숙 자",1]
[null,null,null,"숙 제 자 사 을 남 랑 는",1]
[null,null,null,"하 는 랑 사 제 엑 자 숙",1]
[null,null,null,"는 숙 하 셀 제 사 을 엑",1]
[null,null,null,"엑 셀 제 숙 사 남 하 자",1]
[null,null,null,"제 사 엑 을 자 남 는 숙",1]
[null,null,null,"엑 사 제 을 하 셀 숙 는",1]
[null,null,null,"사 숙 자 하 는 랑 엑 제",1]
[null,null,null,"셀 자 숙 제 남 사 엑 을",1]
[null,null,null,"숙 하 사 랑 제 남 을 는",1]
[null,null,null,"랑 남 숙 제 셀 하 자 사",1]
[null,null,null,"숙 을 남 셀 자 사 제 하",1]
[null,null,null,"하 남 는 제 숙 셀 을 사",1]
[null,null,null,"자 사 셀 숙 랑 제 엑 남",1]
[null,null,null,"자 남 을 엑 숙 는 제 하",{"$f":"COUNTIF($D$4:$D$303,D69)","v":1}]
[null,null,null,"을 는 셀 자 엑 랑 숙 제",1]
[null,null,null,"엑 는 자 을 하 랑 제 숙",1]
[null,null,null,"남 엑 제 하 숙 사 랑 자",1]
[null,null,null,"자 제 는 숙 하 셀 을 남",1]
[null,null,null,"자 는 엑 숙 셀 을 하 제",1]
[null,null,null,"사 남 자 을 숙 셀 제 엑",1]
[null,null,null,"사 제 랑 엑 숙 하 자 남",1]
[null,null,null,"랑 제 는 을 사 하 자 숙",1]
[null,null,null,"셀 사 는 자 을 제 남 숙",1]
[null,null,null,"자 숙 제 하 을 남 랑 사",1]
[null,null,null,"숙 사 셀 자 제 하 랑 는",1]
[null,null,null,"셀 남 랑 숙 제 을 하 는",1]
[null,null,null,"하 자 남 엑 사 는 제 숙",1]
[null,null,null,"사 자 는 엑 랑 제 숙 셀",1]
[null,null,null,"숙 을 사 셀 자 엑 는 제",1]
[null,null,null,"제 자 셀 남 숙 는 엑 하",1]
[null,null,null,"하 숙 제 사 랑 는 자 엑",1]
[null,null,null,"엑 남 사 숙 셀 을 제 자",1]
[null,null,null,"을 제 숙 엑 셀 하 자 는",1]
[null,null,null,"자 남 제 숙 하 사 는 셀",1]
[null,null,null,"제 엑 숙 하 남 사 을 는",1]
[null,null,null,"엑 제 하 랑 숙 사 남 는",1]
[null,null,null,"하 제 을 숙 엑 남 셀 는",1]
[null,null,null,"숙 제 랑 는 자 셀 하 을",1]
[null,null,null,"엑 숙 제 랑 사 자 는 하",1]
[null,null,null,"제 을 랑 는 숙 사 하 엑",1]
[null,null,null,"셀 하 자 랑 남 숙 는 제",1]
[null,null,null,"제 을 사 랑 엑 남 숙 하",1]
[null,null,null,"제 엑 숙 랑 남 하 자 셀",1]
[null,null,null,"남 사 제 숙 자 는 을 셀",1]
[null,null,null,"숙 자 엑 남 제 셀 사 랑",1]
[null,null,null,"숙 랑 제 사 을 남 셀 하",1]
[null,null,null,"남 제 셀 자 는 엑 숙 사",1]
[null,null,null,"을 남 제 하 엑 랑 숙 사",1]
[null,null,null,"사 하 랑 숙 제 자 남 을",1]
[null,null,null,"제 는 남 숙 을 하 셀 랑",1]
[null,null,null,"숙 셀 제 엑 는 랑 하 사",1]
[null,null,null,"하 랑 제 자 셀 사 을 숙",1]
[null,null,null,"을 숙 엑 랑 는 제 남 셀",1]
[null,null,null,"는 사 숙 남 하 제 셀 자",1]
[null,null,null,"엑 는 제 하 을 숙 사 자",1]
[null,null,null,"셀 자 제 는 랑 숙 하 엑",1]
[null,null,null,"제 셀 하 남 숙 엑 는 을",1]
[null,null,null,"남 숙 을 제 랑 자 하 사",1]
[null,null,null,"하 는 제 남 자 숙 을 엑",1]
[null,null,null,"숙 랑 엑 자 을 남 제 는",1]
[null,null,null,"는 숙 사 하 제 랑 셀 남",1]
[null,null,null,"셀 자 제 숙 을 하 남 엑",1]
[null,null,null,"랑 숙 자 셀 을 사 는 제",1]
[null,null,null,"남 셀 제 엑 는 숙 사 을",1]
[null,null,null,"는 제 사 엑 자 숙 을 랑",1]
[null,null,null,"을 남 는 제 자 랑 숙 사",1]
[null,null,null,"숙 사 을 남 하 제 셀 는",1]
[null,null,null,"랑 숙 는 셀 사 제 엑 남",1]
[null,null,null,"자 남 숙 제 을 랑 하 는",1]
[null,null,null,"을 남 는 제 숙 셀 엑 자",1]
[null,null,null,"는 숙 랑 을 제 사 셀 하",1]
[null,null,null,"을 셀 남 제 는 엑 사 숙",1]
[null,null,null,"숙 하 제 남 사 는 셀 을",1]
[null,null,null,"하 제 자 을 셀 숙 엑 는",1]
[null,null,null,"숙 하 랑 제 을 셀 자 는",1]
[null,null,null,"엑 하 랑 숙 제 자 사 을",1]
[null,null,null,"사 는 엑 숙 셀 남 랑 제",1]
[null,null,null,"남 엑 을 사 제 숙 셀 하",{"$f":"COUNTIF($D$4:$D$303,D133)","v":1}]
[null,null,null,"제 사 하 엑 숙 셀 을 남",1]
[null,null,null,"제 는 랑 자 숙 셀 을 사",1]
[null,null,null,"제 랑 사 을 자 숙 는 셀",1]
[null,null,null,"셀 숙 을 자 엑 제 는 남",1]
[null,null,null,"숙 는 자 을 하 랑 제 남",1]
[null,null,null,"숙 남 는 랑 사 자 을 제",1]
[null,null,null,"엑 자 랑 을 하 제 숙 남",1]
[null,null,null,"을 사 하 엑 는 숙 제 셀",1]
[null,null,null,"제 숙 엑 하 자 는 사 랑",1]
[null,null,null,"랑 을 제 숙 셀 하 는 자",1]
[null,null,null,"자 제 는 숙 랑 사 남 엑",1]
[null,null,null,"하 는 엑 셀 제 남 을 숙",1]
[null,null,null,"숙 엑 자 는 제 사 셀 하",1]
[null,null,null,"하 는 제 랑 숙 사 자 셀",1]
[null,null,null,"는 셀 제 하 숙 자 남 랑",1]
[null,null,null,"엑 는 하 을 제 사 숙 남",1]
[null,null,null,"랑 남 사 셀 제 숙 는 을",1]
[null,null,null,"하 엑 남 랑 을 사 제 숙",1]
[null,null,null,"셀 하 숙 랑 제 남 자 엑",1]
[null,null,null,"사 을 남 엑 자 제 숙 셀",1]
[null,null,null,"랑 사 숙 하 제 을 자 는",1]
[null,null,null,"사 숙 엑 남 제 자 하 는",1]
[null,null,null,"자 엑 남 는 숙 을 사 제",1]
[null,null,null,"제 을 숙 엑 자 사 랑 셀",1]
[null,null,null,"는 을 제 하 숙 랑 남 엑",1]
[null,null,null,"사 숙 남 을 엑 자 제 랑",1]
[null,null,null,"셀 하 숙 자 제 엑 는 랑",1]
[null,null,null,"남 제 을 자 사 는 숙 랑",1]
[null,null,null,"사 제 남 숙 자 엑 을 하",1]
[null,null,null,"자 숙 을 제 엑 남 셀 는",1]
[null,null,null,"제 랑 는 엑 을 셀 남 숙",1]
[null,null,null,"숙 자 사 남 제 셀 는 하",1]
[null,null,null,"셀 사 남 는 자 제 을 숙",1]
[null,null,null,"사 숙 랑 는 남 하 제 엑",1]
[null,null,null,"남 숙 제 자 사 을 랑 는",1]
[null,null,null,"셀 사 는 제 숙 랑 엑 하",1]
[null,null,null,"사 자 셀 숙 남 엑 는 제",1]
[null,null,null,"사 는 하 자 랑 숙 엑 제",1]
[null,null,null,"제 자 셀 사 숙 엑 남 을",1]
[null,null,null,"랑 제 셀 는 숙 엑 을 사",1]
[null,null,null,"는 하 자 을 숙 셀 사 제",1]
[null,null,null,"는 을 제 숙 하 랑 셀 남",1]
[null,null,null,"셀 엑 숙 자 사 랑 하 제",1]
[null,null,null,"을 자 숙 사 제 셀 엑 랑",1]
[null,null,null,"는 랑 남 사 셀 자 숙 제",1]
[null,null,null,"남 을 제 는 하 사 셀 숙",1]
[null,null,null,"을 제 엑 자 셀 숙 사 하",1]
[null,null,null,"사 숙 남 자 을 랑 하 제",1]
[null,null,null,"을 는 숙 사 자 랑 제 셀",1]
[null,null,null,"숙 남 엑 는 사 제 자 셀",1]
[null,null,null,"을 셀 사 제 숙 랑 엑 남",1]
[null,null,null,"숙 셀 랑 는 엑 제 을 남",1]
[null,null,null,"는 남 사 을 하 숙 셀 제",1]
[null,null,null,"엑 자 랑 는 제 숙 하 사",1]
[null,null,null,"자 숙 랑 제 하 엑 는 셀",1]
[null,null,null,"엑 을 숙 제 남 는 자 랑",1]
[null,null,null,"랑 을 엑 는 남 숙 제 자",1]
[null,null,null,"제 엑 하 사 자 숙 남 셀",1]
[null,null,null,"숙 하 제 남 엑 자 사 랑",1]
[null,null,null,"자 사 셀 제 숙 엑 남 랑",1]
[null,null,null,"하 엑 사 셀 숙 제 남 자",1]
[null,null,null,"제 을 셀 남 랑 숙 는 엑",1]
[null,null,null,"는 제 남 자 랑 을 셀 숙",1]
[null,null,null,"을 는 제 숙 랑 사 엑 하",{"$f":"COUNTIF($D$4:$D$303,D197)","v":1}]
[null,null,null,"제 사 숙 랑 셀 는 을 남",1]
[null,null,null,"자 숙 제 하 남 셀 엑 사",1]
[null,null,null,"랑 숙 하 사 제 엑 는 남",1]
[null,null,null,"랑 제 사 숙 는 셀 자 하",1]
[null,null,null,"셀 숙 자 하 제 엑 남 랑",1]
[null,null,null,"하 랑 는 을 숙 제 엑 사",1]
[null,null,null,"숙 남 하 제 을 랑 는 자",1]
[null,null,null,"엑 랑 셀 제 는 자 숙 남",1]
[null,null,null,"랑 엑 자 제 남 숙 는 셀",1]
[null,null,null,"는 사 제 하 셀 숙 자 랑",1]
[null,null,null,"셀 엑 는 제 숙 을 사 남",1]
[null,null,null,"랑 을 엑 셀 제 숙 사 는",1]
[null,null,null,"랑 제 자 사 셀 숙 는 을",1]
[null,null,null,"엑 을 사 셀 숙 랑 제 자",1]
[null,null,null,"숙 엑 제 는 하 자 랑 남",1]
[null,null,null,"셀 숙 제 엑 자 하 는 남",1]
[null,null,null,"셀 숙 자 는 하 사 제 남",1]
[null,null,null,"사 숙 남 엑 는 랑 셀 제",1]
[null,null,null,"셀 숙 제 하 는 자 을 남",1]
[null,null,null,"사 랑 는 엑 제 셀 숙 하",1]
[null,null,null,"랑 제 하 을 사 자 숙 는",1]
[null,null,null,"자 랑 남 는 제 엑 셀 숙",1]
[null,null,null,"자 셀 을 숙 남 제 랑 하",1]
[null,null,null,"을 남 제 랑 숙 사 셀 하",1]
[null,null,null,"숙 사 제 셀 을 엑 랑 남",1]
[null,null,null,"는 제 엑 셀 을 숙 사 남",1]
[null,null,null,"숙 남 셀 자 사 을 제 랑",1]
[null,null,null,"제 을 자 는 셀 랑 하 숙",1]
[null,null,null,"사 자 남 숙 는 셀 하 제",1]
[null,null,null,"엑 는 제 을 숙 셀 랑 하",1]
[null,null,null,"랑 숙 엑 셀 을 자 제 는",1]
[null,null,null,"자 숙 을 셀 사 하 제 남",1]
[null,null,null,"랑 제 엑 을 하 자 숙 셀",1]
[null,null,null,"사 랑 제 엑 는 하 숙 자",1]
[null,null,null,"숙 는 제 엑 하 랑 자 을",1]
[null,null,null,"는 셀 엑 제 하 랑 숙 을",1]
[null,null,null,"는 숙 랑 남 엑 자 제 사",1]
[null,null,null,"는 셀 남 을 숙 사 랑 제",1]
[null,null,null,"자 숙 랑 남 사 하 셀 제",1]
[null,null,null,"엑 사 랑 숙 남 제 는 셀",1]
[null,null,null,"는 을 랑 남 하 제 숙 엑",1]
[null,null,null,"남 하 숙 제 엑 는 랑 사",1]
[null,null,null,"자 남 셀 는 하 랑 숙 제",1]
[null,null,null,"제 자 랑 숙 을 셀 하 사",1]
[null,null,null,"남 셀 숙 자 을 제 는 사",1]
[null,null,null,"하 는 사 제 숙 엑 셀 남",1]
[null,null,null,"엑 랑 사 숙 제 는 남 하",1]
[null,null,null,"셀 을 남 숙 엑 랑 자 제",1]
[null,null,null,"랑 숙 제 자 남 는 을 셀",1]
[null,null,null,"엑 자 랑 사 숙 제 는 을",1]
[null,null,null,"는 엑 셀 제 자 숙 하 남",1]
[null,null,null,"을 사 제 엑 셀 숙 하 는",1]
[null,null,null,"사 셀 엑 숙 제 는 을 자",1]
[null,null,null,"랑 하 엑 사 을 제 숙 셀",1]
[null,null,null,"제 는 을 하 숙 자 사 랑",1]
[null,null,null,"엑 자 사 랑 하 숙 을 제",1]
[null,null,null,"숙 사 하 제 남 랑 자 셀",1]
[null,null,null,"사 제 남 엑 을 는 셀 숙",1]
[null,null,null,"을 숙 남 제 는 하 랑 엑",1]
[null,null,null,"제 을 는 사 숙 하 엑 남",1]
[null,null,null,"제 을 셀 엑 하 는 숙 사",1]
[null,null,null,"엑 자 셀 제 는 남 숙 하",1]
[null,null,null,"자 엑 숙 을 는 랑 셀 제",1]
[null,null,null,"하 랑 사 제 는 셀 을 숙",{"$f":"COUNTIF($D$4:$D$303,D261)","v":1}]
[null,null,null,"숙 랑 는 남 제 하 자 엑",1]
[null,null,null,"셀 을 랑 제 하 숙 사 남",1]
[null,null,null,"셀 숙 남 하 제 엑 자 랑",1]
[null,null,null,"랑 숙 는 자 하 제 엑 셀",1]
[null,null,null,"랑 남 을 숙 하 자 는 제",1]
[null,null,null,"랑 숙 자 제 남 엑 사 셀",1]
[null,null,null,"랑 사 제 는 숙 자 남 엑",1]
[null,null,null,"는 랑 숙 사 을 셀 하 제",1]
[null,null,null,"을 자 제 숙 는 하 랑 셀",1]
[null,null,null,"셀 하 사 는 을 숙 제 자",1]
[null,null,null,"제 숙 셀 자 사 랑 을 남",1]
[null,null,null,"사 엑 셀 제 랑 는 숙 하",1]
[null,null,null,"자 남 하 는 제 셀 엑 숙",1]
[null,null,null,"랑 남 하 숙 을 는 제 엑",1]
[null,null,null,"사 는 남 엑 자 랑 숙 제",1]
[null,null,null,"하 자 숙 랑 제 을 사 엑",1]
[null,null,null,"셀 제 자 랑 을 는 숙 남",1]
[null,null,null,"는 랑 제 엑 숙 남 을 사",1]
[null,null,null,"제 는 을 랑 사 숙 셀 하",1]
[null,null,null,"사 숙 셀 을 는 엑 랑 제",1]
[null,null,null,"랑 셀 하 사 는 숙 제 을",1]
[null,null,null,"남 랑 셀 사 자 숙 는 제",1]
[null,null,null,"하 셀 남 숙 자 는 제 을",1]
[null,null,null,"랑 제 자 는 사 하 남 숙",1]
[null,null,null,"남 셀 자 숙 는 을 제 랑",1]
[null,null,null,"제 셀 엑 는 숙 남 랑 사",1]
[null,null,null,"제 자 숙 하 랑 엑 는 을",1]
[null,null,null,"랑 남 는 자 엑 하 숙 제",1]
[null,null,null,"사 는 제 하 숙 을 남 셀",1]
[null,null,null,"엑 랑 제 셀 사 숙 하 남",1]
[null,null,null,"사 는 자 남 숙 하 셀 제",1]
[null,null,null,"제 사 숙 하 자 엑 남 을",1]
[null,null,null,"제 하 을 숙 남 사 셀 랑",1]
[null,null,null,"자 셀 제 숙 남 는 엑 사",1]
[null,null,null,"랑 는 을 자 숙 제 사 남",1]
[null,null,null,"남 사 자 랑 하 을 제 숙",1]
[null,null,null,"는 남 랑 숙 셀 제 하 사",1]
[null,null,null,"숙 는 제 셀 하 을 남 엑",1]
[null,null,null,"사 는 을 하 숙 남 제 셀",1]
[null,null,null,"을 는 하 랑 엑 자 제 숙",1]
[null,null,null,"숙 남 사 하 자 제 엑 을",1]
[null,null,null,"숙 사 제 엑 자 을 는 하",1]

{"sheet":"Sheet1","index":1,"n_rows":0,"n_cols":0,"rows_kept":0,"cut":false,"hidden":false,"merged":[]}